bitfinex-derivatives/quotes_BTCF0:USTF0_20250728
["timestamp","ask_amount","ask_price","bid_price","bid_amount"]
[1753696053937,1.44294932,118960.0,118950.0,2.62031837]
[1753696054840,1.44294932,118960.0,118950.0,2.87259584]
[1753696056348,1.5031529,118960.0,118950.0,2.87259584]
[1753696058045,1.5031529,118960.0,118950.0,2.87255584]
[1753696062245,2.28373906,118960.0,118950.0,0.016]
[1753696062551,2.28373906,118960.0,118950.0,0.54359]
[1753696062552,2.53373906,118960.0,118950.0,0.54359]
[1753696062745,2.53373906,118960.0,118950.0,0.46413]
[1753696063046,2.53373906,118960.0,118950.0,0.1681209]
[1753696063250,2.02918412,118960.0,118950.0,0.8432809]
[1753696063446,2.03146159,118960.0,118950.0,1.09555837]
[1753696063640,1.44294932,118960.0,118950.0,1.21776837]
[1753696063839,1.44294932,118960.0,118950.0,1.51479584]
[1753696064949,1.44294932,118960.0,118950.0,1.34635902]
[1753696065852,1.61105622,118960.0,118950.0,1.42857902]
[1753696067055,1.44294932,118960.0,118950.0,1.42857902]
[1753696067455,1.44594932,118960.0,118950.0,1.42857902]
[1753696067653,1.44594932,118960.0,118950.0,1.47332902]
[1753696068353,1.44794932,118960.0,118950.0,1.47332902]
[1753696070056,1.30983932,118960.0,118950.0,1.74282902]
[1753696070256,1.30983932,118960.0,118950.0,2.07894714]
[1753696070454,1.30983932,118960.0,118950.0,1.74282902]
[1753696070953,1.30683932,118960.0,118950.0,1.74282902]
[1753696071154,1.45551932,118960.0,118950.0,1.74282902]
[1753696071354,1.45851932,118960.0,118950.0,1.74282902]
[1753696074164,0.26851932,118960.0,118950.0,1.74282902]
[1753696074356,0.31124932,118960.0,118950.0,1.74282902]
[1753696075155,0.34392932,118960.0,118950.0,1.74282902]
[1753696076059,0.39400932,118960.0,118950.0,1.74282902]
[1753696080278,0.39400932,118960.0,118950.0,1.06766902]
[1753696080464,0.39400932,118960.0,118950.0,1.02291902]
[1753696080665,0.39400932,118960.0,118950.0,0.5990909]
[1753696081066,0.39400932,118960.0,118950.0,1.2740509]
[1753696081673,0.39400932,118960.0,118950.0,1.65377902]
[1753696083173,0.39400932,118960.0,118950.0,0.97881902]
[1753696083373,0.39400932,118960.0,118950.0,1.02291902]
[1753696083581,0.56211622,118960.0,118950.0,0.77373902]
[1753696083779,0.56211622,118960.0,118950.0,1.44869902]
[1753696083980,0.56211622,118960.0,118950.0,1.52729902]
[1753696084475,0.56211622,118960.0,118950.0,1.1911809]
[1753696084671,0.39400932,118960.0,118950.0,1.1911809]
[1753696084975,0.39400932,118960.0,118950.0,1.02291902]
[1753696085173,0.39400932,118960.0,118950.0,1.69787902]
[1753696085776,0.39400932,118960.0,118950.0,1.74262902]
[1753696086279,0.39400932,118960.0,118950.0,1.69787902]
[1753696086669,0.56211622,118960.0,118950.0,1.69787902]
[1753696086977,0.39400932,118960.0,118950.0,1.69787902]
[1753696087174,0.39400932,118960.0,118950.0,1.42837902]
[1753696087375,0.39400932,118960.0,118950.0,0.75341902]
[1753696087573,0.39400932,118960.0,118950.0,1.42833902]
[1753696087778,0.39400932,118960.0,118950.0,1.47308902]
[1753696088280,0.39400932,118960.0,118950.0,1.42833902]
[1753696089285,0.56211612,118960.0,118950.0,0.3295909]
[1753696089484,1.06636224,118960.0,118950.0,0.1681209]
[1753696089679,1.37651823,118960.0,118950.0,0.1681209]
[1753696089984,1.54672906,118960.0,118950.0,0.1681209]
[1753696090188,0.91652252,118960.0,118950.0,0.8430409]
[1753696090575,1.10692252,118960.0,118950.0,0.8430409]
[1753696090775,1.16707851,118960.0,118950.0,0.8430409]
[1753696091070,1.16707851,118960.0,118950.0,0.67492]
[1753696091381,1.50319663,118960.0,118950.0,0.67492]
[1753696092285,0.292021,118950.0,118940.0,0.2521926]
[1753696092482,0.81365912,118950.0,118940.0,0.9307998]
[1753696092683,0.98180313,118950.0,118940.0,0.9307998]
[1753696093575,0.98680313,118950.0,118940.0,0.9307998]
[1753696094387,1.00251542,118950.0,118940.0,0.9307998]
[1753696096585,1.07753376,118950.0,118940.0,0.9307998]
[1753696097484,1.06882147,118950.0,118940.0,1.0372898]
[1753696097786,1.06882147,118950.0,118940.0,1.0871098]
[1753696100386,1.06882147,118950.0,118940.0,1.06690994]
[1753696100693,0.90067746,118950.0,118940.0,1.06690994]
[1753696101492,0.82565912,118950.0,118940.0,1.06690994]
[1753696101690,0.82565912,118950.0,118940.0,0.39194994]
[1753696101989,0.82565912,118950.0,118940.0,1.06690994]
[1753696102187,0.90090319,118950.0,118940.0,1.06690994]
[1753696102587,0.90090319,118950.0,118940.0,0.39194994]
[1753696102790,0.90090319,118950.0,118940.0,1.06690994]
[1753696103391,0.90090319,118950.0,118940.0,0.39194994]
[1753696103593,0.90090319,118950.0,118940.0,1.06690994]
[1753696103789,0.90090319,118950.0,118940.0,0.43740994]
[1753696103989,0.90090319,118950.0,118940.0,1.11240994]
[1753696104392,0.90090319,118950.0,118940.0,0.48180994]
[1753696104593,0.90090319,118950.0,118940.0,1.15676994]
[1753696105395,0.90090319,118950.0,118940.0,0.48180994]
[1753696105694,0.90090319,118950.0,118940.0,1.15676994]
[1753696106095,0.82565912,118950.0,118940.0,1.15676994]
[1753696106390,0.489541,118950.0,118940.0,1.15676994]
[1753696106696,0.82565912,118950.0,118940.0,1.15676994]
[1753696107295,0.88585703,118950.0,118940.0,1.15676994]
[1753696107997,0.82565912,118950.0,118940.0,1.15676994]
[1753696108397,0.88585703,118950.0,118940.0,1.15676994]
[1753696110403,0.82565912,118950.0,118940.0,1.15676994]
[1753696111297,0.82565912,118950.0,118940.0,0.48180994]
[1753696111803,0.82565912,118950.0,118940.0,1.15676994]
[1753696112304,0.82565912,118950.0,118940.0,0.48180994]
[1753696112504,0.88585703,118950.0,118940.0,1.15676994]
[1753696119309,0.90090319,118950.0,118940.0,1.15676994]
[1753696119902,0.82565912,118950.0,118940.0,1.15676994]
[1753696122610,0.8860302,118950.0,118940.0,1.15676994]
[1753696124407,0.82565912,118950.0,118940.0,1.15676994]
[1753696124711,0.8860599,118950.0,118940.0,1.15676994]
[1753696129916,0.82565912,118950.0,118940.0,1.15676994]
[1753696133016,0.88607632,118950.0,118940.0,1.15676994]
[1753696133411,0.88607632,118950.0,118940.0,0.48180994]
[1753696133612,0.88607632,118950.0,118940.0,1.15668994]
[1753696134711,0.88607632,118950.0,118940.0,0.48180994]
[1753696134915,0.88607632,118950.0,118940.0,1.15664994]
[1753696135120,0.80220062,118950.0,118940.0,1.15664994]
[1753696135419,0.80220062,118950.0,118940.0,0.48180994]
[1753696135617,0.80220062,118950.0,118940.0,1.15664994]
[1753696136518,0.80220062,118950.0,118940.0,0.48180994]
[1753696136923,0.80220062,118950.0,118940.0,1.15664994]
[1753696137420,0.80220062,118950.0,118940.0,0.48180994]
[1753696137614,0.80220062,118950.0,118940.0,1.15664994]
[1753696142618,0.74178342,118950.0,118940.0,1.15664994]
[1753696142823,0.81702749,118950.0,118940.0,1.40889236]
[1753696143027,0.77201749,118950.0,118940.0,1.40889236]
[1753696143216,0.77201749,118950.0,118940.0,1.15664994]
[1753696143416,0.77201749,118950.0,118940.0,1.40889236]
[1753696143723,0.77201749,118950.0,118940.0,1.40885236]
[1753696144424,0.77201749,118950.0,118940.0,1.15660994]
[1753696144625,0.77201749,118950.0,118940.0,1.40885236]
[1753696145019,0.8324618,118950.0,118940.0,1.15660994]
[1753696145225,0.75721773,118950.0,118940.0,1.40885236]
[1753696146427,0.77201749,118950.0,118940.0,1.40885236]
[1753696150132,0.81909749,118950.0,118940.0,1.40885236]
[1753696150726,0.81909749,118950.0,118940.0,1.15660994]
[1753696151643,0.81909749,118950.0,118940.0,0.4599791]
[1753696151841,0.81909749,118950.0,118940.0,1.1346991]
[1753696152245,0.81909749,118950.0,118940.0,0.4599791]
[1753696152446,0.74385342,118950.0,118940.0,0.4397794]
[1753696152639,0.74385342,118950.0,118940.0,1.1144994]
[1753696152840,0.84946632,118950.0,118940.0,0.4397794]
[1753696153040,0.84946632,118950.0,118940.0,1.1144994]
[1753696154247,0.84946632,118950.0,118940.0,0.4397794]
[1753696154448,0.84946632,118950.0,118940.0,1.1144994]
[1753696155641,0.74385342,118950.0,118940.0,1.1144994]
[1753696162656,0.80430678,118950.0,118940.0,1.1144994]
[1753696163355,0.74385342,118950.0,118940.0,1.1144994]
[1753696166953,0.81941298,118950.0,118940.0,1.1144994]
[1753696169355,0.81941298,118950.0,118940.0,0.4397794]
[1753696169854,0.81941298,118950.0,118940.0,1.1143394]
[1753696170656,0.74015298,118950.0,118940.0,0.69202182]
[1753696170855,0.74015298,118950.0,118940.0,1.61882424]
[1753696170856,0.52408342,118950.0,118940.0,1.61882424]
[1753696171157,0.012,118950.0,118940.0,1.87106666]
[1753696171349,0.06570932,118960.0,118950.0,0.456161]
[1753696171551,0.12617144,118960.0,118950.0,0.96064584]
[1753696172057,0.29427834,118960.0,118950.0,0.96064584]
[1753696172446,0.29427834,118960.0,118950.0,0.70840342]
[1753696172858,0.30227834,118960.0,118950.0,0.70840342]
[1753696173159,0.24181622,118960.0,118950.0,0.70840342]
[1753696173356,0.24381622,118960.0,118950.0,0.70840342]
[1753696173956,0.24381622,118960.0,118950.0,0.71719366]
[1753696179251,0.24381622,118960.0,118950.0,0.96943608]
[1753696179756,0.24381622,118960.0,118950.0,0.71719366]
[1753696185861,0.24381622,118960.0,118950.0,0.96943608]
[1753696187156,0.07570932,118960.0,118950.0,0.96943608]
[1753696189562,0.13617144,118960.0,118950.0,0.96943608]
[1753696191260,0.06246212,118960.0,118950.0,1.50963827]
[1753696191460,0.55503076,118980.0,118970.0,0.4086427]
[1753696191664,0.58546076,118980.0,118970.0,1.37411512]
[1753696191865,0.56855421,118980.0,118970.0,1.37411512]
[1753696192163,0.40046631,118980.0,118970.0,1.37411512]
[1753696192364,1.29680675,118980.0,118970.0,1.62635754]
[1753696192555,1.29680675,118980.0,118970.0,1.63135754]
[1753696193359,1.29680675,118980.0,118970.0,1.63535754]
[1753696193868,1.46488535,118980.0,118970.0,1.63535754]
[1753696194362,1.57694535,118980.0,118970.0,1.63535754]
[1753696194563,1.65255535,118980.0,118970.0,1.38311512]
[1753696195767,1.48447675,118980.0,118970.0,1.38311512]
[1753696195968,1.65255525,118980.0,118970.0,1.38311512]
[1753696196268,1.65255525,118980.0,118970.0,1.63535754]
[1753696199971,1.48447675,118980.0,118970.0,1.63535754]
[1753696200871,1.65255535,118980.0,118970.0,1.63535754]
[1753696201073,1.48447675,118980.0,118970.0,1.63535754]
[1753696201571,1.65255535,118980.0,118970.0,1.63535754]
[1753696202463,1.65255535,118980.0,118970.0,1.90485754]
[1753696206172,1.65255535,118980.0,118970.0,1.65261512]
[1753696206773,1.65255535,118980.0,118970.0,1.90485754]
[1753696209484,1.65255535,118980.0,118970.0,1.4003727]
[1753696209778,1.65255535,118980.0,118970.0,1.65261512]
[1753696210579,1.65255535,118980.0,118970.0,1.90485754]
[1753696210781,1.65255535,118980.0,118970.0,1.65261512]
[1753696215179,1.65255535,118980.0,118970.0,1.90485754]
[1753696216284,1.65255535,118980.0,118970.0,1.65261512]
[1753696216974,1.48447675,118980.0,118970.0,1.65261512]
[1753696217175,1.48447675,118980.0,118970.0,1.90485754]
[1753696218086,0.32466675,118980.0,118970.0,1.90485754]
[1753696218380,1.51466675,118980.0,118970.0,1.90485754]
[1753696218581,0.32466675,118980.0,118970.0,1.90485754]
[1753696219080,1.51466675,118980.0,118970.0,1.90485754]
[1753696220184,1.51466675,118980.0,118970.0,1.63535754]
[1753696225089,1.37577675,118980.0,118970.0,1.63535754]
[1753696225590,1.50959675,118980.0,118970.0,1.63535754]
[1753696225889,0.36781675,118980.0,118970.0,1.63535754]
[1753696226092,0.36781675,118980.0,118970.0,1.90485754]
[1753696233391,0.36781675,118980.0,118970.0,1.23065754]
[1753696233689,0.36781675,118980.0,118970.0,1.90425754]
[1753696239398,0.4281467,118980.0,118970.0,1.90425754]
[1753696245005,0.3063767,118980.0,118970.0,1.90425754]
[1753696245198,0.3063767,118980.0,118970.0,3.06729754]
[1753696245800,0.4249567,118980.0,118970.0,3.06729754]
[1753696246401,0.36462675,118980.0,118970.0,3.06729754]
[1753696254607,0.18577675,118980.0,118970.0,3.06729754]
[1753696254813,0.06731675,118980.0,118970.0,3.06729754]
[1753696256612,0.28439995,118990.0,118980.0,0.2075386]
[1753696256914,0.28439995,118990.0,118980.0,1.87101586]
[1753696257115,0.31491995,118990.0,118980.0,1.61877344]
[1753696257815,0.31491995,118990.0,118980.0,1.62077344]
[1753696259116,0.31491995,118990.0,118980.0,1.62677344]
[1753696259313,0.38183693,118990.0,118980.0,1.62677344]
[1753696259616,0.30822693,118990.0,118980.0,1.62777344]
[1753696259817,0.12728693,118990.0,118980.0,2.14751586]
[1753696260013,0.12728693,118990.0,118980.0,2.15051586]
[1753696260417,0.06695698,118990.0,118980.0,2.15051586]
[1753696260608,0.06695698,118990.0,118980.0,2.14351586]
[1753696260808,0.06695698,118990.0,118980.0,2.14551586]
[1753696261011,1.25032995,119000.0,118990.0,0.1680644]
[1753696261213,1.25032995,119000.0,118990.0,0.94543924]
[1753696261418,0.06032995,119000.0,118990.0,0.94543924]
[1753696261831,0.06032995,119000.0,118990.0,1.19768166]
[1753696262016,1.29872547,119010.0,119000.0,0.4409403]
[1753696262212,0.1056129,119030.0,119020.0,0.440912]
[1753696262213,0.43572246,119030.0,119020.0,0.440912]
[1753696262415,0.29952,119030.0,119020.0,1.87087926]
[1753696262618,1.48952,119030.0,119020.0,1.61863684]
[1753696262818,1.48952,119030.0,119020.0,1.44985876]
[1753696263007,1.72398051,119030.0,119020.0,1.44985876]
[1753696263709,1.55597261,119030.0,119020.0,1.45185876]
[1753696266520,1.63153217,119030.0,119020.0,1.45185876]
[1753696266716,0.44153217,119030.0,119020.0,1.45185876]
[1753696267215,1.63153217,119030.0,119020.0,1.45185876]
[1753696267421,1.55792217,119030.0,119020.0,1.45185876]
[1753696267814,1.55776106,119030.0,119020.0,1.45185876]
[1753696268317,1.48236261,119030.0,119020.0,1.45185876]
[1753696268517,0.32279106,119030.0,119020.0,2.61473876]
[1753696268717,0.24739261,119030.0,119020.0,2.61473876]
[1753696269022,0.35300551,119030.0,119020.0,2.61473876]
[1753696269223,0.36597261,119030.0,119020.0,2.61473876]
[1753696269920,0.18204662,119030.0,119020.0,2.61473876]
[1753696270414,0.10669261,119030.0,119020.0,2.88423876]
[1753696271118,0.06645261,119030.0,119020.0,2.88423876]
[1753696271320,1.44914401,119040.0,119030.0,0.255448]
[1753696271523,1.44914401,119040.0,119030.0,1.06490937]
[1753696271724,0.07535401,119040.0,119030.0,1.13111613]
[1753696272017,0.07539401,119050.0,119040.0,0.2490539]
[1753696272223,1.26539401,119050.0,119040.0,1.78900742]
[1753696272422,1.19004,119050.0,119040.0,1.78900742]
[1753696272923,0.06735456,119050.0,119040.0,1.78900742]
[1753696273126,0.29911401,119060.0,119050.0,0.2876298]
[1753696273324,1.41376,119060.0,119050.0,0.77652656]
[1753696273526,1.47935251,119060.0,119050.0,0.77652656]
[1753696274221,1.55463152,119060.0,119050.0,0.77652656]
[1753696275629,1.47935251,119060.0,119050.0,0.77652656]
[1753696276326,1.47935251,119060.0,119050.0,1.04602656]
[1753696280828,1.47935251,119060.0,119050.0,1.72278656]
[1753696290548,1.47935251,119060.0,119050.0,1.69546263]
[1753696293543,1.98302487,119060.0,119050.0,0.56263587]
[1753696293751,1.98302487,119060.0,119050.0,0.92512079]
[1753696293950,1.98302487,119060.0,119050.0,1.09310059]
[1753696294146,1.98302487,119060.0,119050.0,0.8437798]
[1753696295147,1.64731811,119060.0,119050.0,0.1679798]
[1753696295345,1.64731811,119060.0,119050.0,1.17960656]
[1753696295740,1.7074507,119060.0,119050.0,1.17960656]
[1753696295941,1.5394851,119060.0,119050.0,1.33153656]
[1753696296142,1.47935251,119060.0,119050.0,1.33153656]
[1753696297453,1.47935251,119060.0,119050.0,1.1154798]
[1753696297639,1.47935251,119060.0,119050.0,1.45118656]
[1753696299944,0.28935251,119060.0,119050.0,1.45118656]
[1753696300149,0.36883251,119060.0,119050.0,1.70050735]
[1753696300450,1.55883251,119060.0,119050.0,1.70050735]
[1753696303649,1.55883251,119060.0,119050.0,2.86282735]
[1753696309654,0.36883251,119060.0,119050.0,2.86282735]
[1753696310252,4e-05,119060.0,119050.0,2.86282735]
[1753696313460,0.31881747,119070.0,119060.0,0.2877256]
[1753696313759,0.31881747,119070.0,119060.0,1.02747315]
[1753696314057,1.50881747,119070.0,119060.0,1.02747315]
[1753696314454,1.19004,119070.0,119060.0,1.02747315]
[1753696314656,8e-05,119080.0,119070.0,0.4424315]
[1753696314856,8e-05,119080.0,119070.0,2.05810025]
[1753696315052,1.19008,119080.0,119070.0,2.05810025]
[1753696315250,8e-05,119080.0,119070.0,2.05810025]
[1753696315459,0.23728259,119090.0,119080.0,0.4424174]
[1753696315460,0.27837259,119090.0,119080.0,0.4424174]
[1753696315660,0.06017259,119090.0,119080.0,1.11383092]
[1753696315958,1.31854883,119090.0,119080.0,1.11383092]
[1753696316156,1.36751883,119090.0,119080.0,1.11383092]
[1753696316459,1.42832883,119090.0,119080.0,1.11383092]
[1753696316660,1.49565883,119090.0,119080.0,1.11383092]
[1753696316857,1.43552624,119090.0,119080.0,1.11383092]
[1753696317057,1.43552624,119090.0,119080.0,1.12246265]
[1753696317457,1.30738624,119090.0,119080.0,1.12246265]
[1753696317657,0.16124,119100.0,119090.0,0.2876834]
[1753696317858,0.31016259,119110.0,119100.0,0.4423893]
[1753696318059,0.31016259,119110.0,119100.0,1.94025606]
[1753696318364,0.25003,119110.0,119100.0,1.94025606]
[1753696318856,0.25003,119110.0,119100.0,1.94625606]
[1753696319663,0.299,119110.0,119100.0,1.94625606]
[1753696320361,0.36609171,119110.0,119100.0,1.94625606]
[1753696320955,4e-05,119110.0,119100.0,1.94625606]
[1753696321156,4e-05,119110.0,119100.0,1.94025606]
[1753696321460,4e-05,119110.0,119100.0,1.94225606]
[1753696321662,0.135,119110.0,119100.0,1.94225606]
[1753696321849,0.2513,119110.0,119100.0,1.94225606]
[1753696322056,0.299,119110.0,119100.0,1.94225606]
[1753696323760,0.299,119110.0,119100.0,2.19157685]
[1753696324862,0.135,119110.0,119100.0,2.19157685]
[1753696325160,0.04113,119110.0,119100.0,2.19157685]
[1753696325764,0.10194,119110.0,119100.0,2.19157685]
[1753696325957,0.20233,119110.0,119100.0,2.19157685]
[1753696326158,0.299,119110.0,119100.0,2.19157685]
[1753696327665,0.25003,119110.0,119100.0,2.19157685]
[1753696328961,0.299,119110.0,119100.0,2.19157685]
[1753696332066,4e-05,119110.0,119100.0,2.19157685]
[1753696333170,4e-05,119110.0,119100.0,1.94225606]
[1753696334065,0.28498,119110.0,119100.0,1.94225606]
[1753696334262,0.4528752,119110.0,119100.0,2.54117606]
[1753696334570,0.28498,119110.0,119100.0,2.54117606]
[1753696334868,0.28498,119110.0,119100.0,2.57388606]
[1753696337970,0.34511259,119110.0,119100.0,2.57388606]
[1753696338470,0.34511259,119110.0,119100.0,2.2381793]
[1753696338671,0.34511259,119110.0,119100.0,2.57388606]
[1753696339067,4e-05,119110.0,119100.0,2.57388606]
[1753696339268,4e-05,119110.0,119100.0,2.90959282]
[1753696339569,4e-05,119110.0,119100.0,2.57388606]
[1753696344369,4e-05,119110.0,119100.0,2.90959282]
[1753696344576,1.19004,119120.0,119110.0,0.4337351]
[1753696344776,1.19004,119120.0,119110.0,1.10514862]
[1753696345273,1.19004,119120.0,119110.0,0.76944186]
[1753696345671,1.19004,119120.0,119110.0,1.10514862]
[1753696345872,4e-05,119120.0,119110.0,1.10514862]
[1753696346067,0.05775,119130.0,119120.0,0.197991]
[1753696346273,1.24775,119130.0,119120.0,2.03045531]
[1753696347177,1.37975128,119130.0,119120.0,2.03045531]
[1753696348078,1.37975128,119130.0,119120.0,2.03245531]
[1753696348474,1.25646128,119130.0,119120.0,2.03245531]
[1753696348679,0.06646128,119130.0,119120.0,2.03245531]
[1753696349074,0.35140128,119130.0,119120.0,2.03245531]
[1753696349374,0.51926818,119130.0,119120.0,1.57522855]
[1753696349679,0.91510753,119130.0,119120.0,0.41920179]
[1753696349876,1.02286294,119130.0,119120.0,0.41920179]
[1753696350076,1.02286294,119130.0,119120.0,1.09540179]
[1753696350275,0.68715618,119130.0,119120.0,1.09540179]
[1753696350471,0.68715618,119130.0,119120.0,0.846081]
[1753696350674,0.51926818,119130.0,119120.0,0.846081]
[1753696351078,0.35140128,119130.0,119120.0,1.18178776]
[1753696351379,0.51926828,119130.0,119120.0,1.29635776]
[1753696351679,0.51926828,119130.0,119120.0,0.69806776]
[1753696351869,0.51926828,119130.0,119120.0,1.37414776]
[1753696352473,0.57940087,119130.0,119120.0,1.40685776]
[1753696352681,0.41153387,119130.0,119120.0,1.40685776]
[1753696353982,0.57940077,119130.0,119120.0,1.071151]
[1753696354286,0.57940077,119130.0,119120.0,1.40685776]
[1753696356484,0.57940077,119130.0,119120.0,1.038441]
[1753696356681,0.91510753,119130.0,119120.0,1.038441]
[1753696356883,0.91510753,119130.0,119120.0,0.970801]
[1753696357079,0.91510753,119130.0,119120.0,0.294721]
[1753696357286,0.91510753,119130.0,119120.0,0.924311]
[1753696357483,0.57940077,119130.0,119120.0,0.924311]
[1753696357683,0.57940077,119130.0,119120.0,2.200561]
[1753696358988,0.91510753,119130.0,119120.0,1.524041]
[1753696359185,0.91510753,119130.0,119120.0,2.200561]
[1753696359586,0.57940077,119130.0,119120.0,2.200561]
[1753696359785,0.51926818,119130.0,119120.0,2.200321]
[1753696359986,0.51926818,119130.0,119120.0,1.524041]
[1753696359987,0.65486507,119130.0,119120.0,1.524041]
[1753696360185,0.57969933,119130.0,119120.0,2.230911]
[1753696361988,0.51926818,119130.0,119120.0,2.230911]
[1753696362188,0.51926818,119130.0,119120.0,1.554751]
[1753696362384,0.85497494,119130.0,119120.0,2.199961]
[1753696362692,1.02286294,119130.0,119120.0,2.037591]
[1753696363186,0.68715618,119130.0,119120.0,2.037591]
[1753696363387,0.68715618,119130.0,119120.0,2.156161]
[1753696363589,0.76232192,119130.0,119120.0,2.156161]
[1753696363989,0.76232192,119130.0,119120.0,2.186731]
[1753696367795,1.09802868,119130.0,119120.0,1.24342]
[1753696368088,0.68715618,119130.0,119120.0,2.01714084]
[1753696368289,1.02286294,119130.0,119120.0,2.01714084]
[1753696368490,0.37029878,119130.0,119120.0,2.3341066]
[1753696368793,0.29476009,119130.0,119120.0,2.83769436]
[1753696369002,0.23432818,119130.0,119120.0,2.5019876]
[1753696369301,0.29476009,119130.0,119120.0,2.5019876]
[1753696370398,1.48476009,119130.0,119120.0,2.5019876]
[1753696371200,0.12689319,119130.0,119120.0,2.83769436]
[1753696371502,0.06646128,119130.0,119120.0,2.83769436]
[1753696372002,0.12689319,119130.0,119120.0,2.83769436]
[1753696372201,0.06646128,119130.0,119120.0,2.83769436]
[1753696375498,1.25047191,119140.0,119130.0,0.4324969]
[1753696375802,1.25047191,119140.0,119130.0,0.76820366]
[1753696377607,1.25047191,119140.0,119130.0,0.77720366]
[1753696377807,1.25047191,119140.0,119130.0,0.7857779]
[1753696379407,1.31735839,119140.0,119130.0,0.7857779]
[1753696380110,1.25692648,119140.0,119130.0,0.7857779]
[1753696382308,1.31735839,119140.0,119130.0,0.7857779]
[1753696382915,1.25047191,119140.0,119130.0,0.7857779]
[1753696383115,1.26557965,119140.0,119130.0,0.7857779]
[1753696383315,0.4573006,119170.0,119160.0,0.4361616]
[1753696383518,0.52496914,119170.0,119160.0,1.52167523]
[1753696383714,0.63020118,119170.0,119160.0,1.52167523]
[1753696384214,0.52496914,119170.0,119160.0,1.52167523]
[1753696385419,0.52496914,119170.0,119160.0,1.52267523]
[1753696386621,0.58521684,119170.0,119160.0,1.52267523]
[1753696386920,0.35715854,119170.0,119160.0,1.52267523]
[1753696387115,0.41740575,119170.0,119160.0,1.52267523]
[1753696387319,0.41740575,119170.0,119160.0,1.56844523]
[1753696390721,0.58521635,119170.0,119160.0,1.56844523]
[1753696390920,0.58521635,119170.0,119160.0,0.89356523]
[1753696392321,1.19988914,119170.0,119160.0,0.89356523]
[1753696392723,1.03207854,119170.0,119160.0,0.89356523]
[1753696393624,1.19988914,119170.0,119160.0,0.89356523]
[1753696395418,1.19988914,119170.0,119160.0,0.51590327]
[1753696395723,1.5355959,119170.0,119160.0,0.1688247]
[1753696396023,1.5355959,119170.0,119160.0,0.001]
[1753696396227,1.5355959,119170.0,119160.0,0.1688247]
[1753696398824,1.59584311,119170.0,119160.0,0.001]
[1753696399022,1.76367511,119170.0,119160.0,0.001]
[1753696400326,1.76367511,119170.0,119160.0,0.1688247]
[1753696401119,1.7034279,119170.0,119160.0,0.1688247]
[1753696401326,1.7034279,119170.0,119160.0,0.001]
[1753696401816,1.77866985,119170.0,119160.0,0.001]
[1753696402231,1.7034279,119170.0,119160.0,0.001]
[1753696402825,0.1678247,119160.0,119150.0,0.1678386]
[1753696403032,0.84720625,119160.0,119150.0,0.1678386]
[1753696405135,0.84720625,119160.0,119150.0,0.1688386]
[1753696406333,0.51149949,119160.0,119150.0,0.1688386]
[1753696406932,0.52010559,119160.0,119150.0,0.1688386]
[1753696408331,0.52010559,119160.0,119150.0,0.001]
[1753696408528,0.85581235,119160.0,119150.0,0.001]
[1753696409733,0.79550756,119160.0,119150.0,0.001]
[1753696410733,0.96335556,119160.0,119150.0,0.001]
[1753696414637,0.79550756,119160.0,119150.0,0.1688388]
[1753696415137,0.84723248,119160.0,119150.0,0.1688388]
[1753696415939,0.84723248,119160.0,119150.0,0.001]
[1753696416239,0.84723248,119160.0,119150.0,0.1688387]
[1753696417940,0.78690146,119160.0,119150.0,0.1688387]
[1753696420843,0.78690146,119160.0,119150.0,0.001]
[1753696421341,0.78690146,119160.0,119150.0,0.1688387]
[1753696421842,0.84725496,119160.0,119150.0,0.1688387]
[1753696422242,0.84725496,119160.0,119150.0,0.001]
[1753696422444,0.78690146,119160.0,119150.0,0.001]
[1753696424735,0.87082576,119160.0,119150.0,0.001]
[1753696424944,0.94606771,119160.0,119150.0,0.001]
[1753696425139,0.70300106,119160.0,119130.0,0.3256952]
[1753696425344,0.4605829,119140.0,119130.0,0.4815113]
[1753696427539,0.4605829,119140.0,119130.0,0.81721806]
[1753696427843,0.52097722,119140.0,119130.0,0.81721806]
[1753696428042,0.4605829,119140.0,119130.0,0.81721806]
[1753696428243,0.52097722,119140.0,119130.0,0.4395452]
[1753696429244,0.4605829,119140.0,119130.0,0.4395452]
[1753696429443,0.4605829,119140.0,119130.0,0.41937903]
[1753696430136,0.46885988,119140.0,119130.0,0.41937903]
[1753696430337,0.54410183,119140.0,119130.0,0.41937903]
[1753696431447,0.46885988,119140.0,119130.0,0.41937903]
[1753696432141,0.54410183,119140.0,119130.0,0.41937903]
[1753696432344,0.64933387,119140.0,119130.0,0.41937903]
[1753696432552,0.57409192,119140.0,119130.0,0.41937903]
[1753696433050,0.46885988,119140.0,119130.0,0.37741343]
[1753696434053,0.54441192,119140.0,119130.0,0.37741343]
[1753696435753,0.53613494,119140.0,119130.0,0.37741343]
[1753696436355,0.53613494,119140.0,119130.0,0.71312019]
[1753696436747,1.20973494,119140.0,119130.0,0.71312019]
[1753696437848,0.53613494,119140.0,119130.0,0.71312019]
[1753696438047,1.20973494,119140.0,119130.0,0.71312019]
[1753696442352,1.27017361,119140.0,119130.0,0.71312019]
[1753696442552,1.19462157,119140.0,119130.0,0.71312019]
[1753696446257,1.19462157,119140.0,119130.0,0.71312749]
[1753696448169,1.19462157,119140.0,119130.0,0.50357366]
[1753696448364,1.19462157,119140.0,119130.0,0.53451366]
[1753696448567,1.19462157,119140.0,119130.0,0.62284366]
[1753696448861,1.19462157,119140.0,119130.0,0.62933366]
[1753696449066,1.19462157,119140.0,119130.0,0.68596366]
[1753696449663,0.4605969,119130.0,119120.0,0.4341998]
[1753696450059,0.52103557,119130.0,119120.0,0.4341998]
[1753696450268,0.52103557,119130.0,119120.0,0.76990656]
[1753696453568,0.4605969,119130.0,119120.0,0.76990656]
[1753696455763,0.243271,119120.0,119110.0,0.6917575]
[1753696455968,1.123621,119120.0,119110.0,0.6366975]
[1753696456467,1.123621,119120.0,119110.0,0.6417375]
[1753696456669,1.123621,119120.0,119110.0,1.03603099]
[1753696456973,1.123621,119120.0,119110.0,1.02746426]
[1753696457863,2.313621,119120.0,119110.0,1.02746426]
[1753696458268,1.640061,119120.0,119110.0,1.02746426]
[1753696458468,2.313621,119120.0,119110.0,1.02746426]
[1753696458667,1.123621,119120.0,119110.0,1.02746426]
[1753696459068,2.313621,119120.0,119110.0,1.02746426]
[1753696459765,2.313621,119120.0,119110.0,0.75796426]
[1753696460877,2.313621,119120.0,119110.0,0.7666463]
[1753696470379,2.313621,119120.0,119110.0,0.75796426]
[1753696470582,2.313621,119120.0,119110.0,0.61978426]
[1753696471381,2.313621,119120.0,119110.0,0.70290426]
[1753696474081,2.313621,119120.0,119110.0,0.71154329]
[1753696475478,2.313621,119120.0,119110.0,0.70290426]
[1753696477487,2.313621,119120.0,119110.0,0.71118323]
[1753696479285,2.313541,119120.0,119110.0,0.71118323]
[1753696481392,2.313541,119120.0,119110.0,0.70290426]
[1753696482292,2.37397967,119120.0,119110.0,0.70290426]
[1753696482779,2.37397967,119120.0,119110.0,0.71122469]
[1753696483785,2.37397967,119120.0,119110.0,0.66587469]
[1753696484386,2.37397967,119120.0,119110.0,0.65755426]